[Event "*** Titled Tuesday Blitz"]
[Site "Chess.com"]
[Date "2018.01.02"]
[Round "10"]
[White "RoelandPruijssers"]
[Black "VerdeNotte"]
[Result "1/2-1/2"]
[WhiteElo "2571"]
[BlackElo "2668"]
[TimeControl "180+2"]
[EndTime "15:15:17 PST"]
[Termination "Game drawn - insufficient material"]

1. e4 {[%clk 0:03:01.9]} 1... d6 {[%clk 0:02:56.6]} 2. d4 {[%clk 0:03:02.2]}
2... Nf6 {[%clk 0:02:57.5]} 3. Nc3 {[%clk 0:03:03.8]} 3... g6 {[%clk 0:02:58.9]}
4. f4 {[%clk 0:03:04.7]} 4... Bg7 {[%clk 0:03:00.2]} 5. Nf3 {[%clk 0:03:05.6]}
5... O-O {[%clk 0:03:01.3]} 6. e5 {[%clk 0:03:06.7]} 6... dxe5 {[%clk
0:03:02.2]} 7. fxe5 {[%clk 0:03:08.6]} 7... Nd5 {[%clk 0:02:56.2]} 8. Bc4 {[%clk
0:03:09.5]} 8... Nb6 {[%clk 0:02:55.2]} 9. Bb3 {[%clk 0:03:10.1]} 9... Nc6
{[%clk 0:02:56.5]} 10. O-O {[%clk 0:03:07.9]} 10... Na5 {[%clk 0:02:57.4]} 11.
Qe2 {[%clk 0:03:06.1]} 11... Bg4 {[%clk 0:02:53.5]} 12. Be3 {[%clk 0:03:06]}
12... c6 {[%clk 0:02:49.4]} 13. h3 {[%clk 0:03:03.2]} 13... Bxf3 {[%clk
0:02:48.2]} 14. Rxf3 {[%clk 0:03:05.1]} 14... Nxb3 {[%clk 0:02:42.2]} 15. axb3
{[%clk 0:03:07]} 15... Nd5 {[%clk 0:02:43.8]} 16. Nxd5 {[%clk 0:03:05.2]} 16...
Qxd5 {[%clk 0:02:42.7]} 17. c4 {[%clk 0:02:51.6]} 17... Qe6 {[%clk 0:02:42]} 18.
Bf2 {[%clk 0:02:42.4]} 18... f6 {[%clk 0:02:40.6]} 19. Re1 {[%clk 0:02:03.9]}
19... fxe5 {[%clk 0:02:40]} 20. Rxf8+ {[%clk 0:02:04.3]} 20... Rxf8 {[%clk
0:02:38.7]} 21. Bg3 {[%clk 0:02:03.4]} 21... Rd8 {[%clk 0:02:18.5]} 22. Bxe5
{[%clk 0:01:34]} 22... Bxe5 {[%clk 0:02:17.9]} 23. Qxe5 {[%clk 0:01:24]} 23...
Qxe5 {[%clk 0:02:19]} 24. Rxe5 {[%clk 0:01:25.9]} 24... Kf7 {[%clk 0:02:18.8]}
25. Re4 {[%clk 0:01:26.6]} 25... b5 {[%clk 0:02:06.7]} 26. Kf2 {[%clk
0:01:22.5]} 26... bxc4 {[%clk 0:02:04.3]} 27. bxc4 {[%clk 0:01:24.4]} 27... Rb8
{[%clk 0:02:05.2]} 28. Re2 {[%clk 0:01:24.2]} 28... Rb3 {[%clk 0:02:05.5]} 29.
Ke1 {[%clk 0:01:11]} 29... a5 {[%clk 0:01:45.8]} 30. Kd1 {[%clk 0:01:11.3]}
30... Rb4 {[%clk 0:01:39.6]} 31. Rc2 {[%clk 0:01:10.3]} 31... Ke6 {[%clk
0:01:40.8]} 32. Kd2 {[%clk 0:01:03.9]} 32... Rb3 {[%clk 0:01:40.9]} 33. Kc1
{[%clk 0:01:04.1]} 33... Kd6 {[%clk 0:01:35.1]} 34. Re2 {[%clk 0:00:43.8]} 34...
Rb4 {[%clk 0:01:26.8]} 35. Rc2 {[%clk 0:00:44]} 35... e6 {[%clk 0:01:19.9]} 36.
Rc3 {[%clk 0:00:42.2]} 36... c5 {[%clk 0:01:21.1]} 37. dxc5+ {[%clk 0:00:41.6]}
37... Kxc5 {[%clk 0:01:22.2]} 38. b3 {[%clk 0:00:40.8]} 38... a4 {[%clk
0:01:22.5]} 39. bxa4 {[%clk 0:00:41.3]} 39... Rxa4 {[%clk 0:01:23.9]} 40. Re3
{[%clk 0:00:42.1]} 40... Rxc4+ {[%clk 0:01:22.3]} 41. Kd2 {[%clk 0:00:43.2]}
41... Kd5 {[%clk 0:01:23.8]} 42. Rf3 {[%clk 0:00:42.3]} 42... Ra4 {[%clk
0:01:20.7]} 43. Rf7 {[%clk 0:00:43.2]} 43... h5 {[%clk 0:01:18.8]} 44. Ke3
{[%clk 0:00:43.6]} 44... Ra3+ {[%clk 0:01:16.9]} 45. Ke2 {[%clk 0:00:44.5]}
45... e5 {[%clk 0:01:12.4]} 46. Rf6 {[%clk 0:00:43.5]} 46... Ra2+ {[%clk
0:01:08.2]} 47. Kf1 {[%clk 0:00:41.7]} 47... Ke4 {[%clk 0:00:42.4]} 48. Rxg6
{[%clk 0:00:42.7]} 48... h4 {[%clk 0:00:43.9]} 49. Rb6 {[%clk 0:00:38.2]} 49...
Kf4 {[%clk 0:00:39.3]} 50. Rb3 {[%clk 0:00:35]} 50... e4 {[%clk 0:00:39.4]} 51.
Kg1 {[%clk 0:00:33.5]} 51... e3 {[%clk 0:00:38]} 52. Rb4+ {[%clk 0:00:34.1]}
52... Kf5 {[%clk 0:00:39.1]} 53. Kf1 {[%clk 0:00:30]} 53... Rf2+ {[%clk
0:00:37.5]} 54. Ke1 {[%clk 0:00:30.5]} 54... Rf4 {[%clk 0:00:37.1]} 55. Rb3
{[%clk 0:00:20.3]} 55... Re4 {[%clk 0:00:28.7]} 56. Ke2 {[%clk 0:00:20.9]} 56...
Kf4 {[%clk 0:00:30.1]} 57. Rb8 {[%clk 0:00:21.8]} 57... Kg3 {[%clk 0:00:25.3]}
58. Rg8+ {[%clk 0:00:22.3]} 58... Kh2 {[%clk 0:00:26.6]} 59. Rg7 {[%clk
0:00:20.9]} 59... Ra4 {[%clk 0:00:16]} 60. Kxe3 {[%clk 0:00:21.2]} 60... Ra3+
{[%clk 0:00:17.3]} 61. Kf2 {[%clk 0:00:21.7]} 61... Ra2+ {[%clk 0:00:16.2]} 62.
Kf3 {[%clk 0:00:21.4]} 62... Ra3+ {[%clk 0:00:17.5]} 63. Kf2 {[%clk 0:00:21.1]}
63... Ra2+ {[%clk 0:00:18.6]} 64. Kf3 {[%clk 0:00:21.4]} 64... Ra3+ {[%clk
0:00:19.5]} 65. Kf2 {[%clk 0:00:22]} 65... Rb3 {[%clk 0:00:20.8]} 66. Rg4 {[%clk
0:00:21.7]} 66... Rb2+ {[%clk 0:00:21.5]} 67. Kf3 {[%clk 0:00:22.4]} 67... Rb3+
{[%clk 0:00:22.8]} 68. Kf4 {[%clk 0:00:21.7]} 68... Rb5 {[%clk 0:00:16.5]} 69.
Rxh4 {[%clk 0:00:19.7]} 69... Kxg2 {[%clk 0:00:17.7]} 70. Rh8 {[%clk 0:00:21.2]}
70... Rb4+ {[%clk 0:00:17.6]} 71. Kg5 {[%clk 0:00:22.4]} 71... Rb5+ {[%clk
0:00:18.9]} 72. Kg4 {[%clk 0:00:23.1]} 72... Rb4+ {[%clk 0:00:20.1]} 73. Kf5
{[%clk 0:00:24.6]} 73... Kg3 {[%clk 0:00:20.4]} 74. h4 {[%clk 0:00:24.4]} 74...
Rxh4 {[%clk 0:00:20.9]} 75. Rxh4 {[%clk 0:00:26.3]} 75... Kxh4 {[%clk
0:00:21.9]} 1/2-1/2

[Event "*** Titled Tuesday Blitz"]
[Site "Chess.com"]
[Date "2018.01.02"]
[Round "10"]
[White "plouarzel"]
[Black "BillCoe"]
[Result "0-1"]
[WhiteElo "2291"]
[BlackElo "1941"]
[TimeControl "180+2"]
[EndTime "15:15:43 PST"]
[Termination "BillCoe won by resignation"]

1. e4 {[%clk 0:03:01.9]} 1... c5 {[%clk 0:03:00.8]} 2. Nf3 {[%clk 0:03:01.9]}
2... e6 {[%clk 0:03:01.7]} 3. d4 {[%clk 0:03:01.9]} 3... cxd4 {[%clk 0:03:02.5]}
4. Nxd4 {[%clk 0:03:03.8]} 4... a6 {[%clk 0:03:03.5]} 5. Nc3 {[%clk 0:03:04.6]}
5... Qc7 {[%clk 0:03:04.1]} 6. Be2 {[%clk 0:03:01.4]} 6... Nf6 {[%clk
0:03:05.1]} 7. O-O {[%clk 0:03:00.4]} 7... Bb4 {[%clk 0:03:05.7]} 8. Kh1 {[%clk
0:01:51.8]} 8... O-O {[%clk 0:02:59.6]} 9. Qd3 {[%clk 0:01:42.2]} 9... d5 {[%clk
0:02:40]} 10. exd5 {[%clk 0:01:24.7]} 10... Bxc3 {[%clk 0:02:40.4]} 11. bxc3
{[%clk 0:01:24]} 11... Nxd5 {[%clk 0:02:37.9]} 12. c4 {[%clk 0:00:59.5]} 12...
Nf6 {[%clk 0:02:38.2]} 13. Bb2 {[%clk 0:00:55.4]} 13... Nbd7 {[%clk 0:02:35]}
14. Nf3 {[%clk 0:00:49.2]} 14... b6 {[%clk 0:02:27.4]} 15. Qe3 {[%clk
0:00:42.5]} 15... Bb7 {[%clk 0:02:23.7]} 16. Bd3 {[%clk 0:00:38.5]} 16... Rfe8
{[%clk 0:02:17.3]} 17. Ne5 {[%clk 0:00:35.6]} 17... Nxe5 {[%clk 0:01:56.6]} 18.
Bxe5 {[%clk 0:00:36.2]} 18... Qc5 {[%clk 0:01:44.4]} 19. Qg3 {[%clk 0:00:29.4]}
19... Nh5 {[%clk 0:01:29.2]} 20. Qg5 {[%clk 0:00:29.1]} 20... g6 {[%clk
0:01:23.3]} 21. Rae1 {[%clk 0:00:16.7]} 21... Qe7 {[%clk 0:01:18.5]} 22. Qh6
{[%clk 0:00:14.4]} 22... Qf8 {[%clk 0:01:16]} 23. Qe3 {[%clk 0:00:07.1]} 23...
Qc5 {[%clk 0:01:09.4]} 24. Qg5 {[%clk 0:00:05.9]} 24... Qe7 {[%clk 0:01:07.2]}
25. Qh6 {[%clk 0:00:06.5]} 25... Qf8 {[%clk 0:01:07.1]} 26. Qc1 {[%clk
0:00:07.6]} 26... Qc5 {[%clk 0:00:50.2]} 27. f3 {[%clk 0:00:06.7]} 27... Rad8
{[%clk 0:00:37.1]} 28. g4 {[%clk 0:00:07.2]} 28... Ng7 {[%clk 0:00:28.9]} 29.
Qh6 {[%clk 0:00:07.8]} 29... Qf8 {[%clk 0:00:29.4]} 30. Bf6 {[%clk 0:00:06.7]}
30... Rd7 {[%clk 0:00:22.2]} 31. h4 {[%clk 0:00:06.6]} 31... Rc8 {[%clk
0:00:22]} 32. Kg2 {[%clk 0:00:06.6]} 32... Ne8 {[%clk 0:00:21.3]} 33. Qxf8+
{[%clk 0:00:04.4]} 33... Kxf8 {[%clk 0:00:20.8]} 34. Bb2 {[%clk 0:00:05.9]}
34... Nd6 {[%clk 0:00:12.7]} 35. Ba3 {[%clk 0:00:05.2]} 35... Ke8 {[%clk
0:00:12.2]} 36. Kg3 {[%clk 0:00:04.9]} 36... Nxc4 {[%clk 0:00:12.5]} 37. Bc1
{[%clk 0:00:06.2]} 37... b5 {[%clk 0:00:10.3]} 38. Rh1 {[%clk 0:00:05]} 38...
Rdc7 {[%clk 0:00:08.2]} 39. h5 {[%clk 0:00:06]} 39... Nd6 {[%clk 0:00:04]} 40.
hxg6 {[%clk 0:00:06.7]} 40... hxg6 {[%clk 0:00:05.2]} 41. Bg5 {[%clk 0:00:07.7]}
41... Kd7 {[%clk 0:00:05.9]} 42. Rh7 {[%clk 0:00:07.3]} 42... Bd5 {[%clk
0:00:05]} 43. Reh1 {[%clk 0:00:07.5]} 43... Rc3 {[%clk 0:00:04]} 44. Rf1 {[%clk
0:00:03.3]} 44... Bc4 {[%clk 0:00:03.8]} 45. Bxc4 {[%clk 0:00:02.9]} 45... R8xc4
{[%clk 0:00:04.7]} 46. Rd1 {[%clk 0:00:04.5]} 46... Kc6 {[%clk 0:00:03.1]} 47.
Bf4 {[%clk 0:00:05.9]} 47... Ne4+ {[%clk 0:00:02.9]} 48. Kg2 {[%clk 0:00:06.7]}
48... Nf6 {[%clk 0:00:03.7]} 49. Rxf7 {[%clk 0:00:07.7]} 49... Rxf4 {[%clk
0:00:03.3]} 50. Kg3 {[%clk 0:00:09.1]} 50... g5 {[%clk 0:00:02.8]} 51. Rd8
{[%clk 0:00:07.7]} 51... Ne4+ {[%clk 0:00:03.2]} 52. Kg2 {[%clk 0:00:07.4]}
52... Rxf7 {[%clk 0:00:05.1]} 53. fxe4 {[%clk 0:00:08.5]} 53... Rd7 {[%clk
0:00:05.1]} 54. Rc8+ {[%clk 0:00:09.6]} 54... Rc7 {[%clk 0:00:06.1]} 55. Rg8
{[%clk 0:00:10.8]} 55... Rxc2+ {[%clk 0:00:07.1]} 56. Kf3 {[%clk 0:00:12.2]}
56... Rxa2 {[%clk 0:00:07.9]} 57. Rxg5 {[%clk 0:00:12.8]} 57... Kd6 {[%clk
0:00:08.7]} 58. Rg8 {[%clk 0:00:13.5]} 58... Rb7 {[%clk 0:00:07.9]} 59. g5
{[%clk 0:00:13.9]} 59... Ra3+ {[%clk 0:00:08.6]} 60. Kf4 {[%clk 0:00:14]} 60...
b4 {[%clk 0:00:08.5]} 61. g6 {[%clk 0:00:14]} 61... Ra1 {[%clk 0:00:07.4]} 62.
e5+ {[%clk 0:00:15]} 62... Kc6 {[%clk 0:00:07.6]} 63. g7 {[%clk 0:00:16.3]}
63... Kb6 {[%clk 0:00:08.7]} 64. Kg5 {[%clk 0:00:15.5]} 64... a5 {[%clk
0:00:09.2]} 65. Kf6 {[%clk 0:00:16.5]} 65... Rg1 {[%clk 0:00:10.1]} 66. Re8
{[%clk 0:00:14.7]} 66... b3 {[%clk 0:00:10.4]} 67. g8=Q {[%clk 0:00:14.8]} 67...
Rxg8 {[%clk 0:00:09.9]} 68. Rxg8 {[%clk 0:00:16.7]} 68... b2 {[%clk 0:00:11]}
69. Rg1 {[%clk 0:00:17.3]} 69... a4 {[%clk 0:00:11.8]} 70. Kxe6 {[%clk
0:00:11.4]} 70... a3 {[%clk 0:00:12.6]} 71. Kd5 {[%clk 0:00:12.6]} 71... a2
{[%clk 0:00:13.4]} 72. Rg6+ {[%clk 0:00:13.6]} 72... Kb5 {[%clk 0:00:13.9]} 73.
Rg2 {[%clk 0:00:13.8]} 73... b1=Q {[%clk 0:00:14.4]} 0-1

[Event "*** Titled Tuesday Blitz"]
[Site "Chess.com"]
[Date "2018.01.02"]
[Round "10"]
[White "Divertissement"]
[Black "windking123"]
[Result "1/2-1/2"]
[WhiteElo "2436"]
[BlackElo "2424"]
[TimeControl "180+2"]
[EndTime "15:15:53 PST"]
[Termination "Game drawn by repetition"]

1. e4 {[%clk 0:03:00.6]} 1... c5 {[%clk 0:02:59.7]} 2. Nf3 {[%clk 0:03:01.9]}
2... g6 {[%clk 0:02:59.4]} 3. Bc4 {[%clk 0:03:02.1]} 3... Bg7 {[%clk 0:02:59.9]}
4. O-O {[%clk 0:03:03]} 4... Nc6 {[%clk 0:03:01.4]} 5. c3 {[%clk 0:03:04.3]}
5... d6 {[%clk 0:03:02.8]} 6. h3 {[%clk 0:03:03.2]} 6... Nf6 {[%clk 0:03:02.7]}
7. Re1 {[%clk 0:03:03.9]} 7... O-O {[%clk 0:03:00.2]} 8. Bb3 {[%clk 0:03:04.6]}
8... e6 {[%clk 0:02:59.5]} 9. d3 {[%clk 0:03:03.1]} 9... b6 {[%clk 0:02:54]} 10.
Nbd2 {[%clk 0:03:03.4]} 10... Bb7 {[%clk 0:02:55.3]} 11. Nf1 {[%clk 0:03:04.2]}
11... Qc7 {[%clk 0:02:53.7]} 12. Ng3 {[%clk 0:03:04.4]} 12... Ne5 {[%clk
0:02:40.7]} 13. Bf4 {[%clk 0:02:56.8]} 13... Rad8 {[%clk 0:02:16.8]} 14. d4
{[%clk 0:02:52.8]} 14... Nxf3+ {[%clk 0:02:13.2]} 15. Qxf3 {[%clk 0:02:53.6]}
15... e5 {[%clk 0:02:12.1]} 16. dxe5 {[%clk 0:02:44.4]} 16... dxe5 {[%clk
0:02:14]} 17. Bg5 {[%clk 0:02:45.8]} 17... Rd6 {[%clk 0:02:13.5]} 18. Rad1
{[%clk 0:02:45.4]} 18... Rfd8 {[%clk 0:02:02.3]} 19. Rxd6 {[%clk 0:02:27.8]}
19... Rxd6 {[%clk 0:02:00.7]} 20. Rd1 {[%clk 0:02:27.6]} 20... Rxd1+ {[%clk
0:01:56.8]} 21. Bxd1 {[%clk 0:02:29.1]} 21... Qd6 {[%clk 0:01:53.5]} 22. Bc2
{[%clk 0:02:28.1]} 22... c4 {[%clk 0:01:47.1]} 23. Qe3 {[%clk 0:02:22.6]} 23...
Nd7 {[%clk 0:01:44.7]} 24. h4 {[%clk 0:02:18.4]} 24... Nc5 {[%clk 0:01:37.2]}
25. h5 {[%clk 0:02:15.3]} 25... Ne6 {[%clk 0:01:07.5]} 26. Bh6 {[%clk
0:02:02.6]} 26... Nf4 {[%clk 0:00:56.9]} 27. Bxg7 {[%clk 0:02:03.7]} 27... Kxg7
{[%clk 0:00:57]} 28. hxg6 {[%clk 0:02:02.6]} 28... hxg6 {[%clk 0:00:51.9]} 29.
Ne2 {[%clk 0:02:01.4]} 29... Ne6 {[%clk 0:00:52.8]} 30. Ng3 {[%clk 0:01:52]}
30... Nf4 {[%clk 0:00:51.8]} 31. Ne2 {[%clk 0:01:52.5]} 31... Ne6 {[%clk
0:00:53.3]} 32. Ng3 {[%clk 0:01:52.7]} 32... a6 {[%clk 0:00:54.7]} 33. Nf1
{[%clk 0:01:43]} 33... b5 {[%clk 0:00:55.2]} 34. a3 {[%clk 0:01:42.5]} 34... Nc5
{[%clk 0:00:55.2]} 35. Nh2 {[%clk 0:01:37.9]} 35... Bc8 {[%clk 0:00:56.1]} 36.
Nf3 {[%clk 0:01:34.1]} 36... Bg4 {[%clk 0:00:56.2]} 37. Nh4 {[%clk 0:01:31.9]}
37... Bd1 {[%clk 0:00:53.3]} 38. Bb1 {[%clk 0:01:22.8]} 38... Nd3 {[%clk
0:00:35]} 39. Qd2 {[%clk 0:01:08.4]} 39... Bg4 {[%clk 0:00:22.7]} 40. f3 {[%clk
0:01:07.1]} 40... Be6 {[%clk 0:00:21.1]} 41. Bxd3 {[%clk 0:01:03]} 41... cxd3
{[%clk 0:00:23]} 42. g3 {[%clk 0:00:52.6]} 42... a5 {[%clk 0:00:22.3]} 43. Ng2
{[%clk 0:00:52.7]} 43... Bc4 {[%clk 0:00:23]} 44. Kf2 {[%clk 0:00:53]} 44... Qf6
{[%clk 0:00:23.6]} 45. Ne3 {[%clk 0:00:52.3]} 45... Qb6 {[%clk 0:00:24.9]} 46.
b3 {[%clk 0:00:47]} 46... Bxb3 {[%clk 0:00:25.7]} 47. Qxd3 {[%clk 0:00:48.5]}
47... Bc4 {[%clk 0:00:27]} 48. Qd2 {[%clk 0:00:46]} 48... Qc5 {[%clk 0:00:28.4]}
49. Kg2 {[%clk 0:00:45.3]} 49... Be6 {[%clk 0:00:29.7]} 50. f4 {[%clk
0:00:42.1]} 50... exf4 {[%clk 0:00:30.3]} 51. gxf4 {[%clk 0:00:43.1]} 51... Qxa3
{[%clk 0:00:31.2]} 52. Qd4+ {[%clk 0:00:43.5]} 52... Kg8 {[%clk 0:00:31.5]} 53.
f5 {[%clk 0:00:42.6]} 53... Bc4 {[%clk 0:00:32.3]} 54. Ng4 {[%clk 0:00:39.3]}
54... Qe7 {[%clk 0:00:28.3]} 55. Nf6+ {[%clk 0:00:36.5]} 55... Kf8 {[%clk
0:00:27.8]} 56. Nh7+ {[%clk 0:00:25.3]} 56... Kg8 {[%clk 0:00:29]} 57. Nf6+
{[%clk 0:00:26.3]} 57... Kf8 {[%clk 0:00:30.4]} 58. Ng4 {[%clk 0:00:20.8]} 58...
Qg5 {[%clk 0:00:25.9]} 59. Qh8+ {[%clk 0:00:19.7]} 59... Ke7 {[%clk 0:00:26.5]}
60. Qe5+ {[%clk 0:00:21]} 60... Kd7 {[%clk 0:00:26.8]} 61. Kf3 {[%clk
0:00:21.7]} 61... Be2+ {[%clk 0:00:26.8]} 62. Kxe2 {[%clk 0:00:21.4]} 62...
Qxg4+ {[%clk 0:00:28.7]} 63. Ke3 {[%clk 0:00:21.4]} 63... Qh3+ {[%clk
0:00:29.2]} 64. Kd4 {[%clk 0:00:19.6]} 64... gxf5 {[%clk 0:00:30.2]} 65. Qxb5+
{[%clk 0:00:20.2]} 65... Ke7 {[%clk 0:00:31.4]} 66. Qxa5 {[%clk 0:00:16.6]}
66... fxe4 {[%clk 0:00:27.8]} 67. Qc5+ {[%clk 0:00:16.6]} 67... Ke8 {[%clk
0:00:28]} 68. Qe5+ {[%clk 0:00:16.5]} 68... Kf8 {[%clk 0:00:27.4]} 69. Kxe4
{[%clk 0:00:16.7]} 69... Qg2+ {[%clk 0:00:27.7]} 70. Kd4 {[%clk 0:00:17.8]}
70... Qd2+ {[%clk 0:00:28.7]} 71. Kc5 {[%clk 0:00:18]} 71... Qf2+ {[%clk
0:00:27.6]} 72. Kc6 {[%clk 0:00:18.2]} 72... Qf3+ {[%clk 0:00:28.1]} 73. Kd6
{[%clk 0:00:18.7]} 73... Qd3+ {[%clk 0:00:29.3]} 74. Kc5 {[%clk 0:00:19.3]}
74... Qd7 {[%clk 0:00:28.7]} 75. c4 {[%clk 0:00:20.3]} 75... Qc8+ {[%clk
0:00:21.6]} 76. Kd4 {[%clk 0:00:19.5]} 76... Qd7+ {[%clk 0:00:21.5]} 77. Kc5
{[%clk 0:00:20.7]} 77... Qc8+ {[%clk 0:00:22.2]} 78. Kb5 {[%clk 0:00:21.5]}
78... Qd7+ {[%clk 0:00:23.5]} 79. Kb6 {[%clk 0:00:21.5]} 79... Qd8+ {[%clk
0:00:24.1]} 80. Kb5 {[%clk 0:00:20.4]} 80... Qd7+ {[%clk 0:00:24.8]} 81. Kc5
{[%clk 0:00:22.1]} 81... Qc8+ {[%clk 0:00:25.8]} 1/2-1/2